bitfinex-derivatives/quotes_SOLF0:USTF0_20241027
["timestamp","ask_amount","ask_price","bid_price","bid_amount"]
[1730057413295,2.8298,176.9,176.82,10.87353195]
[1730057413497,4.98,176.92,176.82,10.87353195]
[1730057413710,2.8299,176.89,176.85,2.8303]
[1730057414409,2.8299,176.89,176.86,2.8302]
[1730057417207,4.98,176.93,176.86,2.8302]
[1730057417208,2.83,176.88,176.86,2.8302]
[1730057418209,10.87353195,176.9,176.79,6.1938]
[1730057418411,10.87353195,176.88,176.79,1.2138]
[1730057419302,2.8307,176.84,176.81,2.831]
[1730057419508,10.87353195,176.88,176.79,1.2138]
[1730057419710,4.98,176.87,176.79,1.2138]
[1730057420011,2.8309,176.83,176.8,2.8313]
[1730057420206,4.98,176.87,176.8,2.8313]
[1730057420504,2.8309,176.83,176.8,2.8313]
[1730057422905,2.8309,176.83,176.79,1.2138]
[1730057423110,2.8309,176.83,176.81,2.8311]
[1730057423408,4.98,176.87,176.79,1.2138]
[1730057423609,4.98,176.87,176.83,2.8307]
[1730057423803,2.8305,176.85,176.79,1.2138]
[1730057424110,4.98,176.87,176.79,1.2138]
[1730057424308,2.8302,176.87,176.81,10.87353195]
[1730057424604,61.8481,176.96,176.81,10.87353195]
[1730057424605,4.98,176.9,176.81,10.87353195]
[1730057424813,4.98,176.91,176.84,2.8306]
[1730057425109,2.83,176.88,176.83,10.87353195]
[1730057426013,4.98,176.91,176.86,2.8303]
[1730057426014,2.8299,176.89,176.86,2.8303]
[1730057426207,4.98,176.91,176.86,2.8303]
[1730057426910,4.98,176.91,176.83,10.87353195]
[1730057427105,2.83,176.88,176.85,2.8304]
[1730057427719,15.85353195,176.91,176.83,2.8307]
[1730057428310,4.98,176.91,176.82,4.76]
[1730057428502,10.87353195,176.89,176.8,2.8312]
[1730057429109,10.87353195,176.89,176.79,1.2138]
[1730057429319,2.8308,176.83,176.79,1.2138]
[1730057429612,15.63353195,176.86,176.79,1.2138]
[1730057429999,15.63353195,176.86,176.8,2.8312]
[1730057431413,2.8309,176.83,176.8,2.8312]
[1730057433017,15.63353195,176.86,176.8,2.8312]
[1730057433216,2.8309,176.82,176.8,2.8312]
[1730057434509,6.96066834,176.84,176.78,8.21426834]
[1730057434819,2.8314,176.8,176.77,2.8316]
[1730057435125,6.96066834,176.82,176.76,6.96066834]
[1730057435307,6.96066834,176.8,176.75,6.96066834]
[1730057435512,6.96066834,176.78,176.73,2.4749]
[1730057435709,6.96066834,176.78,176.74,6.96066834]
[1730057436018,6.96066834,176.78,176.75,2.832]
[1730057436019,9.79226834,176.78,176.75,2.832]
[1730057436913,2.8319,176.76,176.74,6.96066834]
[1730057437115,2.8319,176.76,176.73,4.0947]
[1730057437316,6.96066834,176.78,176.73,4.0947]
[1730057437811,2.832,176.76,176.73,4.0947]
[1730057447327,5.25795701,176.85,176.75,6.96066834]
[1730057447531,6.96066834,176.81,176.75,6.96066834]
[1730057448027,2.8317,176.78,176.75,9.79266834]
[1730057448221,6.96066834,176.81,176.75,6.96066834]
[1730057448432,2.8316,176.78,176.76,2.8319]
[1730057448732,11.74066834,176.83,176.77,6.96066834]
[1730057448927,2.8311,176.81,176.78,9.79216834]
[1730057449429,2.8311,176.81,176.79,2.8314]
[1730057449624,6.96066834,176.84,176.78,6.96066834]
[1730057449928,4.78,176.85,176.78,6.96066834]
[1730057450128,11.74066834,176.85,176.8,2.8311]
[1730057450431,2.8309,176.83,176.8,2.8311]
[1730057451530,2.8309,176.83,176.81,2.8311]
[1730057451931,2.8307,176.84,176.81,9.79176834]
[1730057452530,2.8307,176.84,176.82,2.8309]
[1730057453231,8.43264824,176.94,176.81,6.96066834]
[1730057453437,6.96066834,176.9,176.84,2.8305]
[1730057453731,6.96066834,176.88,176.82,6.96066834]
[1730057453932,2.8305,176.85,176.82,9.79146834]
[1730057454633,2.8305,176.85,176.83,2.8308]
[1730057455234,2.8304,176.86,176.83,2.8308]
[1730057456134,4.78,176.91,176.76,4.78]
[1730057456135,6.96066834,176.91,176.85,6.96066834]
[1730057456728,2.8299,176.89,176.85,6.96066834]
[1730057457128,4.6,176.92,176.85,6.96066834]
[1730057457329,4.6,176.92,176.86,6.96066834]
[1730057457531,11.56066834,176.92,176.86,6.96066834]
[1730057457740,2.8298,176.9,176.87,2.8301]
[1730057459041,2.8298,176.89,176.87,2.8301]
[1730057459237,4.6,176.92,176.87,2.8301]
[1730057459439,6.96066834,176.9,176.87,2.8301]
[1730057459635,2.8299,176.89,176.87,2.8301]
[1730057460546,6.96066834,176.89,176.81,4.78]
[1730057460745,6.96066834,176.85,176.8,8.12956834]
[1730057461239,5.7998,176.92,176.8,1.1689]
[1730057461430,5.7998,176.92,176.84,6.96066834]
[1730057461431,6.96066834,176.9,176.84,6.96066834]
[1730057461633,2.8302,176.87,176.8,1.1689]
[1730057461832,6.96066834,176.88,176.82,6.96066834]
[1730057462433,9.79076834,176.88,176.82,6.96066834]
[1730057462834,6.96066834,176.88,176.82,6.96066834]
[1730057463038,6.96066834,176.88,176.86,2.8302]
[1730057463732,6.96066834,176.87,176.83,2.8308]
[1730057463931,6.96066834,176.87,176.8,6.96066834]
[1730057464649,2.8306,176.85,176.82,2.8308]
[1730057464843,2.8306,176.85,176.82,6.96066834]
[1730057465545,2.83,176.88,176.85,2.8304]
[1730057465740,11.56066834,176.91,176.87,6.96066834]
[1730057465741,4.6,176.91,176.87,6.96066834]
[1730057465937,4.6,176.91,176.79,5.734]
[1730057465938,2.4156,176.93,176.89,6.96066834]
[1730057466137,2.8292,176.93,176.9,9.79026834]
[1730057466739,2.8292,176.93,176.9,6.96066834]
[1730057468243,6.96066834,176.95,176.9,6.96066834]
[1730057468446,2.829,176.94,176.91,2.8294]
[1730057469950,2.8292,176.93,176.91,2.8294]
[1730057470247,2.8292,176.93,176.87,10.87421245]
[1730057470443,4.58,176.96,176.87,10.87421245]
[1730057470651,15.45421245,176.96,176.86,5.7502]
[1730057470846,15.45421245,176.96,176.87,2.8301]
[1730057471051,15.45421245,176.96,176.86,5.7502]
[1730057471247,15.45421245,176.96,176.86,1.1702]
[1730057471248,2.8294,176.92,176.86,1.1702]
[1730057471449,2.8294,176.92,176.86,5.7502]
[1730057471754,2.8294,176.92,176.89,2.8298]
[1730057473254,15.45421245,176.96,176.86,1.1702]
[1730057473550,10.87421245,176.92,176.8,10.87421245]
[1730057473744,2.4012,176.91,176.81,4.58]
[1730057474447,2.83,176.88,176.83,2.8306]
[1730057474753,2.4012,176.91,176.83,2.8306]
[1730057475056,2.8303,176.86,176.83,2.8306]
[1730057475252,2.8303,176.86,176.81,4.58]
[1730057475552,2.8303,176.86,176.84,2.8306]
[1730057475757,2.8302,176.87,176.84,2.8306]
[1730057475945,2.4012,176.91,176.84,2.8306]
[1730057476449,2.8303,176.86,176.84,2.8306]
[1730057478958,2.8302,176.87,176.84,2.8306]
[1730057480459,2.8301,176.88,176.85,2.8304]
[1730057480659,2.4012,176.91,176.85,2.8304]
[1730057481159,2.8302,176.87,176.84,2.8306]
[1730057482056,2.4012,176.91,176.83,2.8308]
[1730057482252,3.653,176.91,176.81,4.58]
[1730057482460,2.8305,176.85,176.81,4.58]
[1730057482758,10.87421245,176.89,176.79,4.58]
[1730057482947,2.8307,176.84,176.79,4.58]
[1730057483354,2.8307,176.84,176.81,2.8309]
[1730057484352,2.8307,176.84,176.8,10.87421245]
[1730057484656,2.8307,176.84,176.82,2.8309]
[1730057488559,2.8307,176.84,176.83,6.9582787]
[1730057493563,11.3982787,176.88,176.8,6.9582787]
[1730057493564,2.8311,176.82,176.8,6.9582787]
[1730057493762,2.8311,176.82,176.81,6.9582787]
[1730057501061,4.44,176.88,176.81,6.9582787]
[1730057501264,3.653,176.91,176.87,6.9582787]
[1730057501265,4.44,176.9,176.87,6.9582787]
[1730057501569,4.44,176.9,176.8,4.44]
[1730057501570,1.2414,176.91,176.89,6.9582787]
[1730057501868,4.44,176.92,176.89,6.9582787]
[1730057502265,1.1691,176.97,176.89,6.9582787]
[1730057502456,4.44,176.96,176.92,6.9582787]
[1730057502657,2.8289,176.95,176.94,6.9582787]
[1730057502863,4.44,176.96,176.92,6.9582787]
[1730057503568,2.8292,176.93,176.92,6.9582787]
[1730057505460,2.829,176.95,176.92,6.9582787]
[1730057506163,4.44,176.97,176.92,6.9582787]
[1730057506961,2.8291,176.94,176.92,6.9582787]
[1730057507768,2.8291,176.94,176.91,2.8295]
[1730057507769,2.8292,176.93,176.91,6.9582787]
[1730057509865,2.8296,176.91,176.88,2.8299]
[1730057510165,2.8296,176.91,176.89,6.9582787]
[1730057512363,2.8296,176.91,176.89,9.7880787]
[1730057513461,2.8295,176.92,176.89,9.7880787]
[1730057514164,2.8292,176.94,176.91,9.7876787]
[1730057514467,4.44,176.97,176.93,6.9582787]
[1730057514665,2.829,176.94,176.93,6.9582787]
[1730057515868,2.8292,176.93,176.92,6.9582787]
[1730057517770,2.8292,176.93,176.91,6.9582787]
[1730057518362,6.9582787,176.96,176.83,1.41525876]
[1730057518559,4.44,176.97,176.88,9.7881787]
[1730057518560,2.8296,176.91,176.88,9.7881787]
[1730057520078,6.9582787,176.94,176.88,9.7881787]
[1730057520277,2.8297,176.9,176.88,9.7881787]
[1730057523482,2.8298,176.89,176.88,6.9582787]
[1730057524181,5.7025,176.97,176.88,6.9582787]
[1730057524480,4.44,176.97,176.92,6.9582787]
[1730057524982,2.8292,176.93,176.92,6.9582787]
[1730057527081,5.6479,177.26,176.92,252.9382787]
[1730057527269,5.6479,177.26,177.04,6.9582787]
[1730057527270,6.9582787,177.11,177.04,6.9582787]
[1730057527475,2.8265,177.1,177.04,9.7855787]
[1730057527781,6.9582787,177.09,177.03,6.9582787]
[1730057527973,6.9582787,177.09,177.03,9.7857787]
[1730057527974,9.7848787,177.09,177.03,9.7857787]
[1730057528175,9.7848787,177.09,177.0,4.68]
[1730057528176,11.6382787,177.13,177.06,6.9582787]
[1730057528374,11.6382787,177.13,177.08,6.9582787]
[1730057528780,14.4642787,177.13,177.08,6.9582787]
[1730057529181,11.6382787,177.13,177.08,6.9582787]
[1730057529479,11.6382787,177.13,177.04,4.68]
[1730057529480,6.9582787,177.12,177.05,6.9582787]
[1730057530173,11.6382787,177.13,177.07,6.9582787]
[1730057530577,4.68,177.13,177.05,10.86527499]
[1730057530777,4.68,177.14,177.05,10.86527499]
[1730057531385,2.8262,177.12,177.06,2.8271]
[1730057531783,2.8262,177.12,177.05,10.86527499]
[1730057531983,2.8262,177.12,177.07,2.8269]
[1730057533079,4.68,177.14,177.07,2.8269]
[1730057533275,15.54527499,177.14,177.06,2.8271]
[1730057534383,2.8264,177.11,177.06,2.8271]
[1730057535387,2.8265,177.1,177.06,2.8271]
[1730057537687,2.8267,177.09,177.05,2.8272]
[1730057541285,2.8267,177.09,177.03,10.86527499]
[1730057541489,15.54527499,177.14,177.03,10.86527499]
[1730057542289,2.8264,177.11,177.07,2.8269]
[1730057543392,15.54527499,177.14,177.07,2.8269]
[1730057543591,2.8265,177.1,177.07,2.8269]
[1730057544794,2.8267,177.09,177.05,2.8272]
[1730057545099,2.8267,177.09,177.03,10.86527499]
[1730057545684,15.54527499,177.14,177.08,2.8267]
[1730057545685,2.8263,177.11,177.08,2.8267]
[1730057545891,2.8263,177.11,177.05,10.86527499]
[1730057546388,4.68,177.14,177.05,10.86527499]
[1730057546585,3.7041,177.19,177.08,10.86527499]
[1730057546791,4.68,177.18,177.08,10.86527499]
[1730057547997,10.86527499,177.16,177.08,10.86527499]
[1730057548700,2.8259,177.14,177.08,13.69197499]
[1730057548897,10.86527499,177.16,177.08,13.69197499]
[1730057549306,10.86527499,177.12,177.02,1.2185]
[1730057549605,10.86527499,177.12,177.03,4.68]
[1730057549794,2.827,177.07,177.03,7.5075]
[1730057550901,13.22597499,177.12,177.03,7.5075]
[1730057551498,2.827,177.07,177.03,7.5075]
[1730057552901,2.8266,177.1,177.03,7.5075]
[1730057553096,13.22597499,177.12,177.03,7.5075]
[1730057553606,2.8266,177.1,177.03,2.8275]
[1730057553805,13.22597499,177.12,177.03,2.8275]
[1730057554609,2.8271,177.07,177.03,2.8275]
[1730057554812,13.22597499,177.12,177.03,2.8275]
[1730057555308,14.45707499,177.12,177.03,2.8275]
[1730057556408,2.8271,177.06,177.03,2.8275]
[1730057557418,14.45707499,177.12,177.01,4.68]
[1730057557419,2.8273,177.05,177.01,4.68]
[1730057557623,10.86527499,177.1,176.98,12.06777499]
[1730057557915,2.8276,177.03,176.99,4.66]
[1730057558116,2.8276,177.03,177.0,2.8279]
[1730057558708,2.8278,177.02,176.99,2.8281]
[1730057559206,15.52527499,177.05,176.96,15.52527499]
[1730057559413,15.52527499,177.05,176.96,10.86527499]
[1730057560006,2.828,177.01,176.98,2.8283]
[1730057561211,2.8281,177.0,176.97,2.8284]
[1730057561912,15.52527499,177.05,176.95,4.66]
[1730057562113,2.8287,176.96,176.93,2.8291]
[1730057562314,15.52527499,177.0,176.89,5.9164]
[1730057562513,15.52527499,177.0,176.9,10.86527499]
[1730057562715,15.52527499,177.0,176.92,2.8292]
[1730057563320,2.8292,176.94,176.91,2.8294]
[1730057563514,15.52527499,177.0,176.9,10.86527499]
[1730057563718,10.86527499,177.03,176.92,10.86527499]
[1730057563915,4.66,177.01,176.94,2.829]
[1730057564424,2.8285,176.98,176.94,2.829]
[1730057564623,4.66,177.01,176.94,10.86527499]
[1730057564922,7.488,177.01,176.97,10.86527499]
[1730057565121,4.66,177.01,176.97,13.69367499]
[1730057566318,4.66,177.01,176.97,10.86527499]
[1730057566512,2.4319,177.04,176.97,10.86527499]
[1730057566716,7.0919,177.04,176.97,10.86527499]
[1730057567121,7.0919,177.04,176.98,2.8283]
[1730057567423,2.8279,177.02,176.98,2.8283]
[1730057568023,2.8283,176.99,176.95,13.69417499]
[1730057568822,2.8283,176.99,176.95,10.86527499]
[1730057569122,2.8283,176.99,176.96,2.8287]
[1730057570428,10.86527499,177.03,176.93,4.66]
[1730057570723,10.86527499,177.03,176.92,10.86527499]
[1730057571124,2.8288,176.96,176.93,2.8292]
[1730057572919,4.66,177.0,176.92,10.86527499]
[1730057573120,2.829,176.94,176.92,13.69457499]
[1730057573720,2.829,176.94,176.92,2.8293]
[1730057573917,15.52527499,177.0,176.9,13.69487499]
[1730057574126,15.52527499,177.0,176.9,10.86527499]
[1730057574427,2.8289,176.95,176.91,2.8293]
[1730057575022,2.8289,176.95,176.9,10.86527499]
[1730057575226,2.8289,176.95,176.92,2.8293]
[1730057576720,15.52527499,177.0,176.9,10.86527499]
[1730057576925,10.86527499,176.98,176.89,4.0861]
[1730057577116,10.86527499,176.98,176.88,15.52527499]
[1730057577323,1.241,176.97,176.88,15.52527499]
[1730057577521,4.66,176.96,176.88,15.52527499]
[1730057577722,4.66,176.96,176.88,18.35517499]
[1730057578432,2.8295,176.92,176.89,2.8298]
[1730057579629,2.8295,176.92,176.88,15.52527499]
[1730057579831,2.8295,176.92,176.89,2.8298]
[1730057581224,4.66,176.96,176.88,10.86527499]
[1730057581427,15.52527499,176.96,176.86,4.66]
[1730057581828,15.52527499,176.96,176.85,10.86527499]
[1730057582129,10.86527499,176.94,176.84,4.66]
[1730057582325,2.8295,176.91,176.86,2.8302]
[1730057582526,4.66,176.96,176.87,10.86527499]
[1730057582729,4.66,176.96,176.89,10.86527499]
[1730057582932,2.8292,176.93,176.91,2.8295]
[1730057584035,4.66,176.96,176.89,10.86527499]
[1730057584236,4.66,176.99,176.92,2.8292]
[1730057584637,2.8286,176.97,176.92,2.8292]
[1730057584938,4.66,176.99,176.92,2.8292]
[1730057585343,2.8289,176.95,176.92,2.8292]
[1730057586041,4.66,176.99,176.91,2.8294]
[1730057586936,4.66,176.99,176.89,15.52527499]
[1730057586937,2.829,176.95,176.89,15.52527499]
[1730057587636,2.829,176.95,176.92,2.8293]
[1730057589248,4.66,177.0,176.92,2.8293]
[1730057589538,2.8291,176.94,176.92,2.8293]
[1730057589745,2.8291,176.94,176.91,2.8295]
[1730057593641,4.66,177.0,176.91,2.8295]
[1730057594348,2.8291,176.94,176.91,2.8295]
[1730057594847,4.66,177.0,176.91,2.8295]
[1730057595053,4.66,177.0,176.75,17.0]
[1730057595054,2.8295,176.91,176.88,2.8299]
[1730057595745,4.62,176.96,176.87,4.62]
[1730057595948,2.8298,176.89,176.87,4.62]
[1730057596349,2.8298,176.89,176.86,10.86527499]
[1730057597156,4.62,176.96,176.86,10.86527499]
[1730057597352,4.62,176.96,176.89,2.8298]
[1730057597747,2.8295,176.92,176.89,2.8298]
[1730057598153,4.62,176.96,176.89,2.8298]
[1730057598349,2.8296,176.91,176.88,2.8299]
[1730057599649,15.48527499,176.96,176.86,10.86527499]
[1730057599860,2.83,176.88,176.86,2.8303]
[1730057600356,13.29787499,176.94,176.86,2.8303]
[1730057600542,2.8299,176.89,176.86,2.8303]
[1730057602154,2.8299,176.89,176.85,4.62]
[1730057602853,2.8299,176.89,176.86,2.8303]
[1730057603154,2.8299,176.89,176.85,4.62]
[1730057603449,13.29787499,176.94,176.85,4.62]
[1730057603655,2.8298,176.89,176.87,2.83]
[1730057604256,2.8298,176.89,176.86,2.8302]
[1730057604854,13.29787499,176.94,176.85,4.62]
[1730057605053,2.8303,176.87,176.85,4.62]
[1730057605352,2.8303,176.87,176.84,2.8305]
[1730057606956,10.86527499,176.92,176.83,6.03524192]
[1730057607150,10.86527499,176.92,176.82,1.1713]
[1730057607151,15.48527499,176.92,176.82,1.1713]
[1730057607352,15.48527499,176.92,176.82,5.7913]
[1730057607548,15.48527499,176.92,176.84,2.8306]
[1730057608051,2.8302,176.87,176.84,2.8306]
[1730057610258,2.8303,176.87,176.84,2.8306]
[1730057611059,4.62,176.92,176.84,10.86527499]
[1730057611257,2.4326,176.94,176.84,10.86527499]
[1730057611559,2.4326,176.94,176.84,12.28047175]
[1730057611761,2.4326,176.94,176.87,2.83]
[1730057611762,2.8297,176.9,176.87,2.83]
[1730057612565,2.8298,176.89,176.88,6.96030056]
[1730057613460,2.8298,176.89,176.87,9.79030056]
[1730057614453,2.8298,176.89,176.87,2.83]
[1730057614653,2.8298,176.89,176.86,2.8302]
[1730057615663,2.4326,176.94,176.86,2.8302]
[1730057615861,2.83,176.88,176.86,2.8302]
[1730057619264,2.4326,176.94,176.86,2.8302]
[1730057619464,2.4326,176.94,176.87,2.8301]
[1730057619665,2.4326,176.94,176.85,1.41517197]
[1730057619666,2.4326,176.94,176.86,1.41513418]
[1730057619868,2.4326,176.94,176.87,12.28025512]
[1730057620067,2.8294,176.92,176.89,2.8297]
[1730057620672,2.8296,176.91,176.88,2.8299]
[1730057623464,2.8296,176.91,176.87,10.86524618]
[1730057623465,2.8296,176.91,176.89,4.24477453]
[1730057623664,2.8296,176.91,176.89,2.8298]
[1730057626376,2.8296,176.91,176.9,1.41498093]
[1730057629479,2.8296,176.91,176.9,1.41500676]
[1730057632677,2.8296,176.91,176.89,2.8298]
[1730057632877,2.8296,176.91,176.9,1.41502379]
[1730057637382,2.8296,176.91,176.89,2.8298]
[1730057637586,2.8296,176.91,176.9,1.41502399]
[1730057638180,17.0,177.08,176.9,1.41502399]
[1730057638383,17.0,177.08,176.91,1.41502399]
[1730057638384,2.8293,176.93,176.91,1.41502399]
[1730057638684,2.8293,176.93,176.92,1.41502399]
[1730057640183,2.8292,176.93,176.92,1.41502399]
[1730057640383,6.96059459,176.97,176.92,8.37561858]
[1730057640581,6.96059459,176.97,176.93,1.41502399]
[1730057640783,6.96059459,176.97,176.92,6.96059459]
[1730057641182,6.96059459,176.97,176.93,1.41485854]
[1730057641383,2.8291,176.94,176.92,6.96059459]
[1730057641583,2.8291,176.94,176.93,1.41485854]
[1730057642376,2.8289,176.95,176.93,1.41485854]
[1730057642588,2.8289,176.95,176.94,1.41485854]
[1730057647287,4.5,176.99,176.94,4.24375854]
[1730057647491,4.5,176.99,176.94,2.8289]
[1730057647690,11.46059459,176.99,176.94,2.8289]
[1730057647890,11.46059459,176.99,176.95,1.41475108]
[1730057648088,11.46059459,176.99,176.94,2.8289]
[1730057648389,2.8287,176.97,176.94,2.8289]
[1730057648591,2.8287,176.97,176.95,1.41475037]
[1730057648790,2.8287,176.97,176.94,2.8289]
[1730057649091,2.8287,176.97,176.95,1.41475037]
[1730057649296,6.96059459,176.98,176.9,4.5]
[1730057649482,6.96059459,176.98,176.92,9.78979459]
[1730057649690,6.96059459,176.98,176.93,1.41474429]
[1730057649990,6.96059459,176.98,176.94,1.41474429]
[1730057650199,6.96059459,176.98,176.93,9.78969459]
[1730057650492,2.8288,176.96,176.94,1.41477106]
[1730057650692,2.8288,176.96,176.93,9.78969459]
[1730057650895,2.8288,176.96,176.94,1.4147684]
[1730057651091,2.8288,176.96,176.93,9.78969459]
[1730057651393,2.8288,176.96,176.94,1.41475018]
[1730057651586,2.8288,176.96,176.93,9.78969459]
[1730057651789,2.8288,176.96,176.94,1.41474461]
[1730057651988,2.8288,176.96,176.93,9.78969459]
[1730057652195,2.8288,176.96,176.94,1.41474461]
[1730057652384,2.8288,176.96,176.93,9.78969459]
[1730057652589,2.8288,176.96,176.94,1.41475068]
[1730057652893,2.8288,176.96,176.93,9.78969459]
[1730057653096,2.8288,176.96,176.94,1.41475068]
[1730057653291,2.8288,176.96,176.93,9.78969459]
[1730057653495,2.8288,176.96,176.94,1.41474461]
[1730057653793,2.8288,176.96,176.93,9.78969459]
[1730057653982,2.8289,176.95,176.94,1.41474461]
[1730057655403,6.96059459,176.95,176.88,6.96059459]
[1730057655593,6.96059459,176.95,176.83,1.1953]
[1730057655594,6.96059459,176.92,176.89,1.41496926]
[1730057655800,6.96059459,176.92,176.87,11.32059459]
[1730057655801,6.96059459,176.92,176.87,6.96059459]
[1730057655999,6.96059459,176.92,176.88,1.41500642]
[1730057656194,6.96059459,176.92,176.87,6.96059459]
[1730057656401,6.96059459,176.92,176.88,1.41500653]
[1730057656697,2.8297,176.9,176.88,2.83]
[1730057656888,2.8297,176.9,176.89,1.41504259]
[1730057658399,2.8296,176.91,176.89,1.41504259]
[1730057658595,2.8296,176.91,176.9,1.41504259]
[1730057662000,6.96059459,176.89,176.84,11.32059459]
[1730057663401,2.83,176.88,176.86,2.8303]
[1730057665594,2.83,176.88,176.86,9.79089459]
[1730057669403,8.15139459,176.91,176.83,4.36]
[1730057669404,6.96059459,176.89,176.83,4.36]
[1730057669601,6.96059459,176.89,176.84,6.96059459]
[1730057670301,2.8301,176.88,176.85,2.8303]
[1730057670602,1.1908,176.91,176.79,4.36]
[1730057670603,6.96059459,176.86,176.79,4.36]
[1730057670802,6.96059459,176.86,176.81,6.96059459]
[1730057672415,2.8307,176.84,176.81,9.79159459]
[1730057673905,2.8307,176.84,176.82,1.41552299]
[1730057674102,2.8307,176.84,176.83,1.41552299]
[1730057674401,2.8307,176.84,176.81,9.79159459]
[1730057677717,6.96059459,176.86,176.81,9.79159459]
[1730057677919,2.8309,176.83,176.81,6.96059459]
[1730057683426,2.8309,176.83,176.8,2.8312]
[1730057684425,6.96059459,176.86,176.77,208.80162606]
[1730057684629,4.36,176.88,176.77,208.80162606]
[1730057684630,6.96059459,176.82,176.77,208.80162606]
[1730057684833,6.96059459,176.82,176.77,215.76222065]
[1730057685130,6.96059459,176.82,176.77,218.59382065]
[1730057687220,2.8314,176.8,176.77,218.59382065]
[1730057691827,6.96059459,176.8,176.77,208.80162606]
[1730057692033,4.26,176.84,176.74,6.96059459]
[1730057692034,6.96059459,176.78,176.74,6.96059459]
[1730057692432,2.8318,176.77,176.74,9.79269459]
[1730057692834,2.8318,176.77,176.74,6.96059459]
[1730057694234,2.8318,176.77,176.75,2.832]
[1730057694621,9.79229459,176.78,176.75,2.832]
[1730057695329,6.96059459,176.78,176.73,4.26]
[1730057695533,2.832,176.76,176.71,4.26]
[1730057695735,6.96059459,176.78,176.72,6.96059459]
[1730057696538,2.8318,176.77,176.74,2.8321]
[1730057697440,2.8318,176.77,176.75,2.832]
[1730057697627,2.8316,176.78,176.74,6.96059459]
[1730057698042,2.8316,176.78,176.75,2.8319]
[1730057698640,6.96059459,176.8,176.75,2.8319]
[1730057698943,2.8317,176.77,176.75,2.8319]
[1730057700638,2.8317,176.77,176.74,6.96059459]
[1730057700838,2.8317,176.77,176.74,9.79279459]
[1730057702334,2.8317,176.77,176.74,2.8322]
[1730057703343,6.96059459,176.77,176.72,6.96059459]
[1730057703545,6.96059459,176.77,176.71,6.96059459]
[1730057703943,2.8325,176.72,176.71,6.96059459]
[1730057704148,6.96059459,176.74,176.68,4.26]
[1730057704349,6.96059459,176.72,176.68,4.26]
[1730057704643,2.8328,176.71,176.68,7.0931]
[1730057705053,6.96059459,176.71,176.57,5.659]
[1730057705245,6.96059459,176.67,176.58,6.88951944]
[1730057705444,6.96059459,176.67,176.62,6.96059459]
[1730057705650,2.8336,176.66,176.63,4.25071944]
[1730057705844,6.96059459,176.67,176.62,6.96059459]
[1730057706548,2.8339,176.64,176.62,6.96059459]
[1730057709945,2.8339,176.64,176.6,11.21206122]
[1730057710149,2.8339,176.64,176.6,9.79499459]
[1730057710346,6.96059459,176.66,176.59,5.67711176]
[1730057710550,6.96059459,176.66,176.59,6.96059459]
[1730057710551,2.8341,176.62,176.59,6.96059459]
[1730057711152,2.8341,176.62,176.59,9.79509459]
[1730057712353,2.8341,176.62,176.56,6.7348]
[1730057712354,4.3,176.71,176.61,6.96059459]
[1730057712655,4.3,176.71,176.67,6.96059459]
[1730057712855,4.3,176.71,176.66,6.96059459]
[1730057713058,11.26059459,176.71,176.66,6.96059459]
[1730057714347,2.8333,176.68,176.66,6.96059459]
[1730057715357,1.2111,176.74,176.69,2.833]
[1730057715358,7.1326,176.72,176.69,2.833]
[1730057715559,4.3,176.72,176.68,6.96059459]
[1730057715753,11.26059459,176.72,176.68,6.96059459]
[1730057716352,2.833,176.7,176.68,6.96059459]
[1730057716547,6.96059459,176.72,176.68,6.96059459]
[1730057716751,8.17169459,176.74,176.69,6.96059459]
[1730057716955,2.8324,176.73,176.7,9.79339459]
[1730057717759,2.8326,176.72,176.7,9.79339459]
[1730057719254,2.8326,176.72,176.67,2.8333]
[1730057719461,2.8326,176.72,176.68,6.96059459]
[1730057720051,2.8326,176.72,176.69,2.833]
[1730057721554,6.96059459,176.74,176.68,6.96059459]
[1730057721863,6.96059459,176.74,176.68,9.79369459]
[1730057722759,2.8327,176.72,176.68,9.79369459]